{"text_format":"3","workbook":"xlsx","n_sheets":2,"sheets":["HAT","Currency"],"not_rendered":{"external_links":8,"defined_names":312},"read":"whole","date_system":"1900"}

{"sheet":"HAT","index":0,"n_rows":90,"n_cols":25,"rows_kept":90,"merged":[[2,2,2,7],[26,2,26,9],[30,5,30,7],[30,8,30,12],[31,5,31,7],[32,0,35,0],[32,1,35,1],[32,2,35,2],[40,1,40,5],[42,1,46,1],[47,1,52,1],[53,1,57,1],[58,1,63,1],[66,8,66,22],[67,5,67,7],[67,8,67,12],[67,13,67,17],[67,18,67,22],[68,5,68,7],[69,1,70,1],[76,4,76,9],[77,5,77,7],[86,1,86,2]]}
[null,null,"Costing Schedule : IT Hardware Asset Tracking Solution"]
[]
[null,null,"VENDOR NAME"]
[]
[]
[null,null,"IMPORTANT NOTES"]
[null,null,"All cells highlighted in GREEN must be completed"]
[null,null,"Quoted prices MUST be in ZAR, EXCLUDING VAT and ESCALATIONS"]
[]
[null,null,"IT Hardware Asset Tracking Solution"]
[null,null,"Prices MUST be quoted based on the SCOPE provided"]
[null,null,"Select the currency from the CURRENCY drop-down list in COLUMN \"G\""]
[]
[null,null,"Capture the applicable Currency, ROE and ROE Published Date on the \"Currency sheet\". "]
[null,null,"The adjustments for prevailing rates and the basis for future price adjustments will be determined at time of contracting. ",{"$nulls":8},"     "]
[null,null,"Exchange rate variations may not be claimed for the local mark-up in the pricing structure"]
[]
[null,null,"NB: PROVIDE RESOURCES REQUIRED FOR SOLUTION IMPLEMENTATION USING TABLE 1"]
[]
[null,null,"PROVIDE SUBSCRIPTION PRICE BASED ON THE ESTIMATED VOLUMES [SOLUTION SUPPORT]"]
[null,null,"PROVIDE CPA FORMULA FOR ANNUAL PRICING ADJUSTMENT [COLUMN Y]"]
[]
[null,null,"PROVIDE UNIT PRICE BASED ON THE VOLUME BLOCKS [THE PRICE WILL BE USED FOR FUTURE PROCUREMENT OF ADDITIONAL LICENSES]"]
[]
[null,null,"All Prices must be exclusive of VAT"]
[]
[null,null,"NB: For local suppliers/Resellers, pricing to Eskom must be in South African Rands (ZAR) and cannot be linked to any foreign currency rate of exchange. \nIn such cases, Eskom will not undertake any foreign exchange commitment or arrange forward cover except if you are a direct importer of the product."]
[]
[]
[]
[null,null," ",{"$nulls":5},"SOLUTION IMPLEMENTATION"]
["Item Number",null,"Category","Description","Unit charge","CURRENCY",null,null,"Total Estimated Quantity","Unit Price in Nominated Currency","Unit Price in ZAR","Total [Nominated Currency]","Total in ZAR"]
[1,"SOLUTION IMPLEMENTATION","Solution Implementation","Design","sum",{"$f":"IF(G33=\"\",\"\",IF(G33=\"ZAR\",\"Local\",\"Foreign\"))","v":"Local"},"ZAR",{"$f":"IF(F33=\"\",\"\",IF(F33=\"Foreign\",VLOOKUP(G33,Currency!$E$20:$F$33,2,FALSE),1))","v":{"v":1,"d":"1.00"}},{"$nulls":4},{"$f":"G47","v":0}]
[{"$nulls":3},"Build and Configure","sum","Local","ZAR",{"$f":"IF(F34=\"\",\"\",IF(F34=\"Foreign\",VLOOKUP(G34,Currency!$E$20:$F$33,2,FALSE),1))","v":{"v":1,"d":"1.00"}},{"$nulls":4},{"$f":"G53","v":0}]
[{"$nulls":3},"Testing","sum","Local","ZAR",{"$f":"IF(F35=\"\",\"\",IF(F35=\"Foreign\",VLOOKUP(G35,Currency!$E$20:$F$33,2,FALSE),1))","v":{"v":1,"d":"1.00"}},{"$nulls":4},{"$f":"G58","v":0}]
[{"$nulls":3},"Deployment & Installation","sum","Local","ZAR",{"$f":"IF(F36=\"\",\"\",IF(F36=\"Foreign\",VLOOKUP(G36,Currency!$E$20:$F$33,2,FALSE),1))","v":{"v":1,"d":"1.00"}},{"$nulls":4},{"$f":"G64","v":0}]
[null,null,"Total ",{"$nulls":9},{"$f":"SUM(M33:M36)","v":0}]
[]
[]
[]
[null,"TABLE 1: RESOURCES FOR IMPLEMENTATION"]
[null,"Stage","Skill","No. of Hours","Hourly Rate","Total"]
[null,"Design","Solution Architect",0,0,{"$f":"E43*D43","v":0}]
[null,null,"Technical Architect",0,0,0]
[null,null,"<Please specify>",0,0,0]
[null,null,"<Please specify>",0,0,0]
[null,null,"<Please specify>",0,0,0,{"$f":"SUM(F43:F47)","v":0}]
[null,"Build and Configure","Implementation Specialists",0,0,0]
[null,null,"Technical Application Specialist",0,0,0]
[null,null,"Data Engineers",0,0,0]
[null,null,"<Please specify>",0,0,0]
[null,null,"<Please specify>",0,0,0]
[null,null,"<Please specify>",0,0,0,{"$f":"SUM(F48:F53)","v":0}]
[null,"Testing","Senior Tester",0,0,0]
[null,null,"Intermediate Tester",0,0,0]
[null,null,"<Please specify>",0,0,0]
[null,null,"<Please specify>",0,0,0]
[null,null,"<Please specify>",0,0,0,{"$f":"SUM(F54:F58)","v":0}]
[null,"Deployment & Installation","Implementation Specialist",0,0,0]
[null,null,"Technical Application Specialist",0,0,0]
[null,null,"Data Engineers",0,0,0]
[null,null,"<Please specify>",0,0,0]
[null,null,"<Please specify>",0,0,0]
[null,null,"<Please specify>",0,0,0,{"$f":"SUM(F59:F64)","v":0}]
[]
[]
[{"$nulls":8},"SOLUTION SUPPORT"]
[null,null," ",{"$nulls":5},"YEAR 1",{"$nulls":4},"YEAR 2",{"$nulls":4},"YEAR 3"]
[null,null,"Category","Description","Unit charge","CURRENCY",null,null,"Total Estimated Quantity","Unit Price in Nominated Currency","Unit Price in ZAR","Total [Nominated Currency]","Total in ZAR","Total Estimated Quantity","Unit Price in Nominated Currency","Unit Price in ZAR","Total [Nominated Currency]","Total in ZAR","Total Estimated Quantity","Unit Price in Nominated Currency","Unit Price in ZAR","Total [Nominated Currency]","Total in ZAR",null,"CONTRACT PRICE ADJUSTMENT"]
[null,"Solution Support","Enterprise Subscription Licenses (SaaS)","Base Licenses (20000 endpoints)","sum",{"$f":"IF(G70=\"\",\"\",IF(G70=\"ZAR\",\"Local\",\"Foreign\"))","v":"Local"},"ZAR",{"$f":"IF(F70=\"\",\"\",IF(F70=\"Foreign\",VLOOKUP(G70,Currency!$E$20:$F$33,2,FALSE),1))","v":{"v":1,"d":"1.00"}},20000,0,{"$f":"J70*$H70","v":0},{"$f":"J70*$I70","v":0},{"$f":"K70*$I70","v":0},20000,0,{"$f":"O70*$H70","v":0},{"$f":"O70*$N70","v":0},{"$f":"P70*$N70","v":0},20000,0,{"$f":"T70*$H70","v":0},{"$f":"T70*$S70","v":0},{"$f":"U70*$S70","v":0}]
[null,null,"Training","Training ( tool/portal functionality)","sum","Local","ZAR",{"$f":"IF(F71=\"\",\"\",IF(F71=\"Foreign\",VLOOKUP(G71,Currency!$E$20:$F$33,2,FALSE),1))","v":{"v":1,"d":"1.00"}},5,0,0,{"$f":"J71*$I71","v":0},{"$f":"K71*$I71","v":0},5,0,{"$f":"O71*$H71","v":0},{"$f":"O71*$N71","v":0},{"$f":"P71*$N71","v":0},5,0,{"$f":"T71*$H71","v":0},{"$f":"T71*$S71","v":0},{"$f":"U71*$S71","v":0}]
[{"$nulls":12},{"$f":"SUM(M70:M71)","v":0},{"$nulls":4},{"$f":"SUM(R70:R71)","v":0},{"$nulls":4},{"$f":"SUM(W70:W71)","v":0}]
[]
[{"$nulls":12},{"$f":"SUM(M72,R72,W72)","v":0}]
[]
[]
[{"$nulls":4},"PRICE HOLD BASED ON LICENSE BLOCKS"]
[{"$nulls":4},"QUANTITY","CURRENCY",null,null,"Unit Price in Nominated Currency","Unit Price in ZAR"]
[{"$nulls":4},"0 - 499",{"$f":"IF(G79=\"\",\"\",IF(G79=\"ZAR\",\"Local\",\"Foreign\"))","v":"Local"},"ZAR",{"$f":"IF(F79=\"\",\"\",IF(F79=\"Foreign\",VLOOKUP(G79,Currency!$E$20:$F$33,2,FALSE),1))","v":{"v":1,"d":"1.00"}},0,{"$f":"I79*$H79","v":0}]
[{"$nulls":4},"500 - 999 ",{"$f":"IF(G80=\"\",\"\",IF(G80=\"ZAR\",\"Local\",\"Foreign\"))","v":"Local"},"ZAR",{"$f":"IF(F80=\"\",\"\",IF(F80=\"Foreign\",VLOOKUP(G80,Currency!$E$20:$F$33,2,FALSE),1))","v":{"v":1,"d":"1.00"}},0,{"$f":"I80*$H80","v":0}]
[{"$nulls":4},"1000 - 1499","Local","ZAR",{"$f":"IF(F81=\"\",\"\",IF(F81=\"Foreign\",VLOOKUP(G81,Currency!$E$20:$F$33,2,FALSE),1))","v":{"v":1,"d":"1.00"}},0,0]
[{"$nulls":4},"1500 - 1999","Local","ZAR",{"$f":"IF(F82=\"\",\"\",IF(F82=\"Foreign\",VLOOKUP(G82,Currency!$E$20:$F$33,2,FALSE),1))","v":{"v":1,"d":"1.00"}},0,0]
[{"$nulls":4},">=2000","Local","ZAR",{"$f":"IF(F83=\"\",\"\",IF(F83=\"Foreign\",VLOOKUP(G83,Currency!$E$20:$F$33,2,FALSE),1))","v":{"v":1,"d":"1.00"}},0,0]
[]
[]
[]
[null,"SUMMARY"]
[null,"SOLUTION IMPLEMENTATION",{"$f":"M37","v":0}]
[null,"SOLUTION SUPPORT",{"$f":"M74","v":0}]
[null,"GRAND TOTAL",{"$f":"SUM(C88:C89)","v":0}]

{"sheet":"Currency","index":1,"n_rows":33,"n_cols":8,"rows_kept":33,"merged":[[1,1,1,5],[6,2,6,7],[7,1,9,1],[7,2,7,7],[7,15,7,20],[8,2,8,7],[9,2,9,7],[10,2,10,7],[11,2,11,7],[12,1,14,1],[12,2,12,7],[13,2,13,7],[14,2,14,7],[17,2,17,7]]}
[]
[null,{"$f":"[8]HSE!B3","v":"VENDOR NAME"}]
[]
[null,"EXCHANGE RATES FOR MULTIPLE CURRENCIES"]
[]
[null,"NOTES:"]
[null,1,"The table below needs to be completed if the Employer will be exposed to any currency fluctuation as stipulated in Secondary Clause X3.  For conversion of the foreign portions to Rand, please use the South African Reserve Bank's (SARB) exchange rate at 12:00 on the day of advertisement of the bid.  This is in terms of the Preferential Procurement Policy Framework Act (PPPFA) with which the Employer has to comply.\nNB: Tenderers must submit proof of the SARB rate(s) of exchange used  "]
[null,2,"The following URL (electronic route) is to be followed to access the relevant SARB rates on their web pages:\n"]
[null,null,"www.resbank.co.za"]
[null,null,"-  Select Research\n-  Then select Rates\n-  Click on \"Select historical exchange rates and other interest rates\"\n-  Clicking on the exchange rate in the following page opens the daily rates per currency and SA Rand"]
[null,3,"The Employer deals only in the currencies listed below unless other currencies are specifically approved for this tender.  Kindly notify the Employer of any currency that the tenderer intends to use, but is not stipulated in the table, to consider sanctioning such currency.  Sufficient time must be allowed for the assessment and to respond to such request.  The onus is on the tenderer to submit a bid with approved currencies"]
[null,4,"The format in which the exchange rate must be inserted in the table is:  1 (One) Foreign Currency = R Amount  (i.e. the Rand amount for one of each foreign currency applicable).  Exchange rates must be rounded to 4 decimals\n\nNB :  Only the USD/ZAR, GBP/ZAR and EUR/ZAR are published in this way on the SARB web pages above.  The Rand rate with the other currencies must be inverted (1/Foreign Currency Rate) in order to list it in the required format in the table below\n"]
[null,5,"All information in the table below must conform with all other equivalent information in the offer. "]
[null,null,"Payment in terms of Payment Method 2  is considered as a \"foreign payment\" although it will be effected in South African Rand. However, amounts for  \"F.O.R. Price-Goods supplied from Imported Items\", are NOT considered as \"foreign payments\""]
[null,null,"If more than one payment method apply for a currency, the Tenderer must request an additional row be inserted in the table in order to split the values and identify the relevant method.   "]
[]
[]
[null,null,"MULTIPLE CURRENCIES"]
[null,null,"No","Currency Description","Code","Exchange Rate Currency 1,00 =","Date Published","Source"]
[null,null,1,"Australian Dollar","AUD"]
[null,null,2,"Canadian Dollar","CAN"]
[null,null,3,"Swiss Franc","CHF"]
[null,null,4,"Danish Krone","DKK"]
[null,null,5,"European Currency","EUR"]
[null,null,6,"British Pound","GBP"]
[null,null,7,"Hong Kong Dollar","HKD"]
[null,null,8,"Japanese Yen","JPY"]
[null,null,9,"Norwegian Krone","NOK"]
[null,null,10,"New Zealand Dollar","NZD"]
[null,null,11,"Swedish Krone","SEK"]
[null,null,12,"Singapore Dollar","SGD"]
[null,null,13,"United States Dollar","USD"]
[null,null,14,"South African Rand","ZAR",{"v":1,"d":"R 1.000000"}]